bitfinex/quotes_SOLUSD_20250611
["timestamp","ask_amount","ask_price","bid_price","bid_amount"]
[1749611698094,10.26543453,165.69,165.68,2.10496769]
[1749611698407,10.26543453,165.69,165.68,2.10528578]
[1749611698912,2.48773009,165.74,165.68,2.10528578]
[1749611699117,10.26543453,165.69,165.66,25.02]
[1749611699311,10.26543453,165.69,165.67,2.10335631]
[1749611699513,10.26543453,165.69,165.68,2.10335631]
[1749611699814,10.26543453,165.69,165.68,2.10364816]
[1749611700001,10.26543453,165.69,165.68,2.10368027]
[1749611700314,10.26543453,165.69,165.68,2.10368149]
[1749611700511,8.1046,165.73,165.59,6.034]
[1749611700712,10.26543453,165.61,165.52,4.53747532]
[1749611700912,10.26543453,165.61,165.59,26.0]
[1749611701118,10.26543453,165.61,165.6,28.10895969]
[1749611701414,6.5194,165.65,165.6,28.10918105]
[1749611701591,10.26543453,165.61,165.6,26.0]
[1749611701793,10.26543453,165.61,165.6,28.10921453]
[1749611702000,10.26543453,165.61,165.6,28.10912847]
[1749611702619,10.26543453,165.61,165.6,2.10912847]
[1749611703011,10.26543453,165.61,165.54,18.64964886]
[1749611703012,10.26543453,165.61,165.54,28.91508339]
[1749611703315,10.26543453,165.59,165.55,25.02]
[1749611703506,10.26543453,165.59,165.56,2.10906467]
[1749611703703,10.26543453,165.59,165.57,28.10906467]
[1749611703907,10.26543453,165.59,165.58,2.10920165]
[1749611704101,10.26543453,165.6,165.57,26.0]
[1749611704405,10.26543453,165.6,165.58,2.10924458]
[1749611704608,10.26543453,165.6,165.59,2.1097102]
[1749611704808,10.26543453,165.6,165.59,2.10961226]
[1749611705011,11.86893453,165.6,165.59,2.10961226]
[1749611705208,11.86893453,165.6,165.59,2.10985277]
[1749611705415,11.86893453,165.6,165.59,2.11018703]
[1749611705723,11.86893453,165.6,165.55,26.0]
[1749611705907,10.26543453,165.57,165.55,26.0]
[1749611706303,10.26543453,165.57,165.56,2.12993355]
[1749611706499,10.26543453,165.57,165.56,2.13003199]
[1749611706698,12.0794,165.65,165.56,2.13003199]
[1749611706699,8.162,165.65,165.59,26.0]
[1749611706924,10.26543453,165.63,165.6,2.128728]
[1749611707104,10.26543453,165.61,165.59,26.0]
[1749611707303,10.26543453,165.61,165.6,2.12845748]
[1749611707524,10.26543453,165.61,165.59,26.0]
[1749611708599,8.162,165.65,165.58,35.30543453]
[1749611708800,10.26543453,165.64,165.59,10.26543453]
[1749611708997,10.26543453,165.64,165.58,25.04]
[1749611709211,10.26543453,165.64,165.59,10.26543453]
[1749611709823,10.26543453,165.63,165.6,2.12783437]
[1749611710024,10.26543453,165.63,165.61,2.12783437]
[1749611710221,10.26543453,165.63,165.62,2.12783437]
[1749611710608,10.26543453,165.63,165.62,2.12754826]
[1749611710914,10.26543453,165.63,165.58,25.04]
[1749611711117,10.26543453,165.63,165.59,2.1254146]
[1749611711320,10.26543453,165.63,165.6,2.12536726]
[1749611711625,10.26543453,165.63,165.58,35.30543453]
[1749611711626,10.26543453,165.63,165.61,2.12535361]
[1749611711829,10.26543453,165.64,165.62,2.12535361]
[1749611712009,10.26543453,165.64,165.63,2.12535361]
[1749611712327,10.26543453,165.64,165.63,2.12297172]
[1749611712524,10.26543453,165.64,165.63,2.12311975]
[1749611712929,10.26543453,165.64,165.63,2.12310019]
[1749611713121,10.26543453,165.64,165.63,2.12299696]
[1749611713320,10.26543453,165.64,165.59,10.26543453]
[1749611713523,10.26543453,165.64,165.6,2.12301532]
[1749611713723,10.26543453,165.64,165.61,2.12301532]
[1749611714017,10.26543453,165.64,165.62,2.12301532]
[1749611714225,10.26543453,165.64,165.63,2.12301532]
[1749611714426,10.26543453,165.66,165.63,2.12301532]
[1749611714733,10.26543453,165.66,165.64,2.12216796]
[1749611715034,5.56,165.67,165.62,25.02]
[1749611715035,10.26543453,165.65,165.62,25.02]
[1749611715241,10.26543453,165.64,165.63,2.12033064]
[1749611716123,5.56,165.67,165.63,2.12073483]
[1749611716334,10.26543453,165.64,165.6,26.0]
[1749611716515,10.26543453,165.63,165.61,2.12089964]
[1749611716833,10.26543453,165.63,165.62,2.1209083]
[1749611717135,10.26543453,165.64,165.62,2.1209083]
[1749611717326,5.56,165.67,165.63,2.1209083]
[1749611717530,10.26543453,165.64,165.6,51.02]
[1749611717725,10.26543453,165.63,165.61,2.12059288]
[1749611717914,10.26543453,165.63,165.62,2.12059288]
[1749611718109,10.26543453,165.63,165.62,2.12045158]
[1749611718334,10.26543453,165.63,165.6,51.02]
[1749611718529,5.56,165.67,165.61,2.12001935]
[1749611718530,10.26543453,165.64,165.61,2.12001935]
[1749611718841,10.26543453,165.63,165.62,2.11974036]
[1749611720430,10.26543453,165.63,165.61,2.1199607]
[1749611720733,10.26543453,165.63,165.62,2.1199607]
[1749611720925,10.26543453,165.63,165.62,2.12040149]
[1749611721619,10.26543453,165.63,165.62,2.12371734]
[1749611721807,10.26543453,165.63,165.62,2.12394843]
[1749611722016,10.26543453,165.63,165.62,2.12394622]
[1749611722230,5.56,165.67,165.6,51.02]
[1749611722416,10.26543453,165.65,165.61,2.12350614]
[1749611722727,10.26543453,165.66,165.62,2.12350614]
[1749611722919,10.26543453,165.66,165.63,2.12350614]
[1749611723122,10.26543453,165.66,165.6,151.18543453]
[1749611723334,10.26543453,165.65,165.61,2.12342042]
[1749611723509,10.26543453,165.65,165.62,2.12340515]
[1749611723715,10.26543453,165.65,165.63,2.12340608]
[1749611723915,10.26543453,165.65,165.64,2.12340608]
[1749611724522,7.8407,165.69,165.64,2.12340608]
[1749611724834,10.26543453,165.67,165.62,10.26543453]
[1749611725040,10.26543453,165.67,165.63,2.12346102]
[1749611725214,10.26543453,165.67,165.64,2.12354439]
[1749611725416,10.26543453,165.67,165.62,10.26543453]
[1749611725943,7.8407,165.69,165.63,2.1233472]
[1749611726123,10.26543453,165.67,165.64,2.1233472]
[1749611726322,10.26543453,165.67,165.65,2.1233472]
[1749611726633,10.26543453,165.67,165.64,25.02]
[1749611726944,1.591,165.69,165.64,125.18543453]
[1749611727178,10.26543453,165.7,165.65,10.26543453]
[1749611727437,15.78543453,165.71,165.66,2.11827893]
[1749611727637,15.78543453,165.71,165.67,2.11827893]
[1749611727822,15.78543453,165.71,165.65,10.26543453]
[1749611728137,15.78543453,165.71,165.66,2.11741223]
[1749611728438,15.78543453,165.71,165.67,2.11721659]
[1749611728643,10.26543453,165.7,165.68,2.11721659]
[1749611728844,10.26543453,165.69,165.64,25.02]
[1749611729139,10.26543453,165.68,165.65,2.11783338]
[1749611729336,10.26543453,165.67,165.66,2.11785054]
[1749611730136,10.26543453,165.67,165.66,2.11933128]
[1749611730336,10.26543453,165.67,165.64,25.02]
[1749611730524,10.26543453,165.67,165.65,2.11938308]
[1749611730843,10.26543453,165.67,165.66,2.11937792]
[1749611731846,18.42603453,165.67,165.54,1.6568]
[1749611732028,10.26543453,165.61,165.59,26.0]
[1749611732228,10.26543453,165.61,165.6,2.1080702]
[1749611732535,10.26543453,165.61,165.6,2.10827426]
[1749611733251,10.26543453,165.61,165.6,2.10699468]
[1749611733635,10.26543453,165.61,165.58,26.0]
[1749611733833,10.26543453,165.61,165.59,2.10701622]
[1749611734147,8.1606,165.67,165.6,2.10726917]
[1749611734346,8.1606,165.67,165.61,2.10756325]
[1749611734550,10.26543453,165.62,165.57,35.28543453]
[1749611734759,10.26543453,165.61,165.58,2.10540567]
[1749611734931,10.26543453,165.61,165.59,2.10540567]
[1749611735129,8.1606,165.67,165.6,2.10555746]
[1749611735331,10.26543453,165.61,165.57,25.02]
[1749611735633,10.26543453,165.6,165.58,2.10548463]
[1749611735938,10.26543453,165.6,165.59,2.10546508]
[1749611736128,10.26543453,165.6,165.58,2.10580257]
[1749611736319,10.26543453,165.59,165.51,10.26543453]
[1749611736526,10.26543453,165.56,165.52,27.14433755]
[1749611736741,11.80353453,165.6,165.55,10.26543453]
[1749611737049,10.26543453,165.6,165.56,27.14385345]
[1749611737354,10.26543453,165.61,165.57,2.12480241]
[1749611737544,10.26543453,165.61,165.56,25.02]
[1749611738433,10.26543453,165.61,165.56,51.02]
[1749611738754,10.26543453,165.59,165.56,51.02]
[1749611739628,10.26543453,165.6,165.57,2.1253004]
[1749611739848,10.26543453,165.6,165.56,51.02]
[1749611740230,10.26543453,165.6,165.57,2.1268085]
[1749611740433,10.26543453,165.6,165.58,2.1268085]
[1749611740643,10.26543453,165.6,165.59,2.1268085]
[1749611741436,10.26543453,165.6,165.59,2.12849867]
[1749611741637,10.26543453,165.6,165.59,2.12600096]
[1749611742032,10.26543453,165.6,165.57,2.12745243]
[1749611742239,10.26543453,165.59,165.58,2.12745243]
[1749611742432,10.26543453,165.59,165.58,2.12783694]
[1749611742644,10.26543453,165.59,165.57,2.12783694]
[1749611742841,10.26543453,165.6,165.58,2.12783694]
[1749611743136,10.26543453,165.59,165.54,25.02]
[1749611743357,10.26543453,165.56,165.55,2.12839695]
[1749611743658,10.26543453,165.56,165.54,51.02]
[1749611743953,10.26543453,165.56,165.55,2.12929416]
[1749611744142,10.26543453,165.56,165.54,51.02]
[1749611744341,10.26543453,165.56,165.55,2.12872518]
[1749611745259,10.26543453,165.57,165.55,2.12872518]
[1749611745453,10.26543453,165.57,165.56,2.12625582]
[1749611745661,1.5338,165.59,165.53,35.28543453]
[1749611745955,10.26543453,165.6,165.55,10.26543453]
[1749611746146,10.26543453,165.6,165.56,25.02]
[1749611746352,10.26543453,165.6,165.57,2.1342858]
[1749611746546,10.26543453,165.6,165.58,2.1342858]
[1749611746748,10.26543453,165.59,165.56,25.02]
[1749611746955,10.26543453,165.59,165.57,2.1343996]
[1749611747143,10.26543453,165.59,165.58,2.13439957]
[1749611747534,10.26543453,165.59,165.56,25.02]
[1749611747734,10.26543453,165.59,165.57,2.13444717]
[1749611747935,10.26543453,165.59,165.56,25.02]
[1749611748137,10.26543453,165.59,165.57,2.13464306]
[1749611748350,10.26543453,165.59,165.58,2.13464306]
[1749611749253,10.26543453,165.6,165.58,2.13286468]
[1749611749446,10.26543453,165.6,165.59,2.13300924]
[1749611749649,10.26543453,165.6,165.59,2.13301379]
[1749611750363,10.26543453,165.6,165.56,25.02]
[1749611750663,10.26543453,165.59,165.57,2.13102104]
[1749611750867,10.26543453,165.59,165.58,2.13105004]
[1749611751168,10.26543453,165.59,165.58,2.13152156]
[1749611751350,10.26543453,165.59,165.58,2.13152254]
[1749611751537,10.26543453,165.59,165.58,2.13164853]
[1749611751960,6.2999,165.58,165.52,25.02]
[1749611752165,10.26543453,165.53,165.51,25.02]
[1749611752342,10.26543453,165.53,165.52,2.13188564]
[1749611752541,10.26543453,165.53,165.52,2.13201349]
[1749611752742,1.6402,165.57,165.48,140.92]
[1749611752951,10.26543453,165.52,165.49,2.13246661]
[1749611753150,10.26543453,165.52,165.5,28.13247262]
[1749611753357,10.26543453,165.52,165.5,26.0]
[1749611753562,10.26543453,165.51,165.5,26.0]
[1749611753747,10.26543453,165.51,165.5,2.13209413]
[1749611754061,10.26543453,165.51,165.5,2.13073003]
[1749611754241,10.26543453,165.51,165.5,2.13066814]
[1749611754644,10.26543453,165.51,165.5,2.13025065]
[1749611755059,10.26543453,165.51,165.49,26.0]
[1749611755265,10.26543453,165.51,165.5,2.13022362]
[1749611755862,10.26543453,165.51,165.49,26.0]
[1749611756072,1.6402,165.57,165.5,2.14302576]
[1749611756248,1.6402,165.57,165.51,2.14372503]
[1749611756449,1.6402,165.57,165.52,2.14343574]
[1749611756651,10.26543453,165.53,165.48,10.26543453]
[1749611756852,10.26543453,165.52,165.49,2.14406764]
[1749611757052,10.26543453,165.51,165.5,2.14406764]
[1749611758377,10.26543453,165.51,165.47,114.92]
[1749611758567,10.26543453,165.5,165.48,2.14196871]
[1749611758770,10.26543453,165.5,165.49,2.14196871]
[1749611759582,18.10513453,165.5,165.38,89.9]
[1749611759871,10.26543453,165.42,165.38,18.64964886]
[1749611760077,10.26543453,165.42,165.39,25.02]
[1749611760272,10.26543453,165.42,165.4,25.02]
[1749611760469,7.8397,165.5,165.4,25.02]
[1749611761081,10.26543453,165.45,165.4,25.02]
[1749611761749,10.26543453,165.44,165.41,2.1435514]
[1749611761953,10.26543453,165.44,165.42,2.1435514]
[1749611762259,10.26543453,165.47,165.43,28.1435514]
[1749611762452,7.8397,165.5,165.44,37.44898593]
[1749611762767,11.78563453,165.5,165.45,12.40898593]
[1749611762967,11.78563453,165.5,165.45,10.26543453]
[1749611763168,10.26543453,165.5,165.45,10.26543453]
[1749611763474,10.26543453,165.49,165.46,2.14094595]
[1749611763671,10.26543453,165.48,165.47,2.14094595]
[1749611764263,10.26543453,165.48,165.44,25.04]
[1749611764464,10.26543453,165.45,165.44,25.04]
[1749611764711,10.26543453,165.45,165.44,27.17967929]
[1749611764879,10.26543453,165.45,165.44,2.13967929]
[1749611765057,10.26543453,165.45,165.42,2.14645042]
[1749611765258,17.12913914,165.45,165.43,2.14655678]
[1749611765560,17.12913914,165.45,165.44,2.14655545]
[1749611766388,17.12913914,165.46,165.42,51.04]
[1749611766570,17.12913914,165.46,165.43,2.14493562]
[1749611766758,17.12913914,165.46,165.42,25.04]
[1749611766959,17.12913914,165.46,165.43,2.14484622]
[1749611767278,17.12913914,165.45,165.42,51.04]
[1749611767476,17.12913914,165.45,165.43,2.14512389]
[1749611767779,17.12913914,165.45,165.42,51.04]
[1749611768082,17.12913914,165.5,165.43,2.14520498]
[1749611768266,17.12913914,165.5,165.42,140.94]
[1749611768585,17.12913914,165.5,165.43,2.1451943]
[1749611768766,17.12913914,165.44,165.42,114.94]
[1749611768963,17.12913914,165.44,165.43,2.14521539]
[1749611769360,17.12913914,165.45,165.43,2.14521539]
[1749611769664,17.12913914,165.45,165.42,25.04]
[1749611769864,17.12913914,165.45,165.43,2.14442087]
[1749611770059,17.12913914,165.45,165.42,25.04]
[1749611770380,17.12913914,165.44,165.43,2.14428266]
[1749611770565,17.12913914,165.44,165.43,2.14428226]
[1749611771081,17.12913914,165.44,165.42,25.04]
[1749611771283,17.12913914,165.43,165.42,25.04]
[1749611771580,17.12913914,165.43,165.36,107.02913914]
[1749611771779,17.12913914,165.4,165.37,2.15051304]
[1749611771959,17.12913914,165.4,165.38,2.15063886]
[1749611772162,17.12913914,165.4,165.39,2.15075493]
[1749611772480,17.12913914,165.4,165.39,2.15080138]
[1749611772794,17.12913914,165.4,165.39,2.1516169]
[1749611772983,17.12913914,165.4,165.37,51.04]
[1749611773161,17.12913914,165.4,165.38,2.14884067]
[1749611773359,17.12913914,165.4,165.37,51.04]
[1749611773657,17.12913914,165.4,165.38,2.1480038]
[1749611773873,17.12913914,165.4,165.38,25.04]
[1749611774883,17.12913914,165.4,165.39,2.15094053]
[1749611775273,17.12913914,165.4,165.39,2.15736278]
[1749611775573,17.12913914,165.4,165.39,2.15744466]
[1749611775775,17.12913914,165.4,165.37,26.0]
[1749611776083,17.12913914,165.4,165.36,26.0]
[1749611776084,1.5015,165.4,165.36,26.0]
[1749611776287,17.12913914,165.37,165.36,26.0]
[1749611776474,17.12913914,165.37,165.36,28.15860688]
[1749611776667,1.5015,165.4,165.36,28.15860688]
[1749611776975,17.12913914,165.39,165.38,26.0]
[1749611777279,17.12913914,165.39,165.35,25.04]
[1749611777475,17.12913914,165.37,165.36,28.15807039]
[1749611777667,17.12913914,165.37,165.36,28.1578546]
[1749611777983,17.12913914,165.37,165.36,28.15784911]
[1749611778787,1.5015,165.45,165.38,26.0]
[1749611779009,6.6485,165.46,165.42,26.0]
[1749611779294,17.12913914,165.43,165.42,51.06]
[1749611779461,6.6485,165.46,165.42,51.06]
[1749611779662,17.12913914,165.43,165.42,51.06]
[1749611779963,17.12913914,165.43,165.42,25.06]
[1749611780161,17.12913914,165.45,165.42,51.06]
[1749611780875,17.12913914,165.44,165.42,51.06]
[1749611781080,1.5015,165.49,165.42,26.0]
[1749611781396,17.12913914,165.43,165.42,26.0]
[1749611781965,17.12913914,165.43,165.4,25.06]
[1749611782280,17.12913914,165.43,165.41,2.15703928]
[1749611782475,17.12913914,165.43,165.4,51.06]
[1749611782667,17.12913914,165.43,165.41,2.15678411]
[1749611782863,17.12913914,165.43,165.42,26.0]
[1749611783465,17.12913914,165.45,165.42,28.15729839]
[1749611783663,17.12913914,165.44,165.42,26.0]
[1749611784720,17.12913914,165.43,165.4,25.06]
[1749611784865,17.12913914,165.41,165.36,89.9]
[1749611785192,17.12913914,165.37,165.35,25.06]
[1749611785362,10.28880681,165.36,165.3,10.28880681]
[1749611785566,10.28880681,165.35,165.31,25.06]
[1749611785779,10.28880681,165.35,165.32,25.06]
[1749611785975,10.28880681,165.35,165.34,26.0]
[1749611786897,10.28880681,165.35,165.33,25.06]
[1749611787223,10.28880681,165.34,165.33,51.06]
[1749611787377,17.15242287,165.34,165.28,18.78342287]
[1749611787697,1.6431,165.42,165.34,26.0]
[1749611787994,17.15242287,165.36,165.34,51.06]
[1749611788695,17.15242287,165.4,165.34,51.06]
[1749611789191,17.15242287,165.35,165.34,25.06]
[1749611789397,17.15242287,165.35,165.27,35.80207173]
[1749611789594,17.15242287,165.32,165.28,27.2254017]
[1749611789784,17.15242287,165.32,165.31,26.0]
[1749611789987,17.15242287,165.4,165.31,28.14539813]
[1749611790187,1.6431,165.42,165.35,26.0]
[1749611790371,17.15242287,165.39,165.35,51.1]
[1749611790576,17.15242287,165.38,165.35,51.1]
[1749611790777,1.6431,165.42,165.35,51.1]
[1749611790778,17.15242287,165.37,165.35,51.1]
[1749611791892,17.15242287,165.37,165.36,2.1630443]
[1749611792422,17.15242287,165.37,165.36,2.16298398]
[1749611792788,17.15242287,165.38,165.36,2.16298398]
[1749611792989,17.15242287,165.38,165.35,51.1]
[1749611793290,17.15242287,165.37,165.36,2.16431698]
[1749611794206,17.15242287,165.38,165.36,2.16431698]
[1749611794388,17.15242287,165.38,165.35,141.0]
[1749611794715,17.15242287,165.36,165.35,89.9]
[1749611794895,17.15242287,165.36,165.28,35.80207173]
[1749611795097,17.15242287,165.33,165.29,27.24533408]
[1749611795290,17.15242287,165.32,165.3,27.24855166]
[1749611795490,17.15242287,165.32,165.31,2.16855166]
[1749611796010,17.15242287,165.4,165.31,2.16855166]
[1749611796212,17.15242287,165.35,165.32,27.25025817]
[1749611796523,17.15242287,165.4,165.33,2.17025817]
[1749611796815,18.64964886,165.39,165.3,26.0]
[1749611797025,18.64964886,165.39,165.31,27.27170885]
[1749611797192,17.15242287,165.4,165.32,2.17191907]
[1749611797397,17.15242287,165.4,165.33,2.17191907]
[1749611797610,17.15242287,165.34,165.31,25.1]
[1749611797916,17.15242287,165.33,165.32,2.17246265]
[1749611798418,17.15242287,165.33,165.31,25.1]
[1749611798790,18.64964886,165.39,165.32,2.17242934]
[1749611799008,18.64964886,165.39,165.3,26.0]
[1749611799009,17.15242287,165.33,165.3,26.0]
[1749611799213,17.15242287,165.31,165.3,26.0]
[1749611799392,17.15242287,165.31,165.3,28.17415749]
[1749611800011,17.15242287,165.31,165.3,26.0]
[1749611800212,17.15242287,165.31,165.3,28.1729231]
[1749611800519,1.6381,165.35,165.3,2.17332309]
[1749611800730,17.15242287,165.34,165.31,25.1]
[1749611801024,17.15242287,165.33,165.32,2.18146903]
[1749611801427,17.15242287,165.33,165.32,2.18145146]
[1749611801801,17.15242287,165.33,165.32,2.18142709]
[1749611802003,17.15242287,165.33,165.31,25.1]
[1749611802195,17.15242287,165.33,165.32,2.18307337]
[1749611802391,17.15242287,165.33,165.32,28.18339181]
[1749611802595,17.15242287,165.33,165.32,28.18369043]
[1749611802815,17.15242287,165.33,165.32,28.18322435]
[1749611803020,6.162,165.36,165.32,28.18322435]
[1749611803195,17.15242287,165.33,165.32,26.0]
[1749611803399,17.15242287,165.34,165.32,28.18310379]
[1749611803598,17.15242287,165.34,165.33,2.18310379]
[1749611803999,17.15242287,165.34,165.33,2.18494541]
[1749611804209,17.15242287,165.34,165.33,2.18588539]
[1749611804502,17.15242287,165.34,165.33,2.18578906]
[1749611804822,17.15242287,165.34,165.33,2.18576514]
[1749611805001,17.15242287,165.34,165.33,2.18576134]
[1749611805203,17.15242287,165.34,165.33,2.18576635]
[1749611805421,17.15242287,165.34,165.33,2.18544406]
[1749611805603,17.15242287,165.34,165.31,51.1]
[1749611805813,17.15242287,165.32,165.31,51.1]
[1749611806317,17.15242287,165.32,165.31,53.28399529]
[1749611807204,10.29370379,165.32,165.31,53.28399529]
[1749611807403,10.29370379,165.32,165.31,53.28511765]
[1749611807612,10.29370379,165.32,165.31,51.1]
[1749611807794,10.29370379,165.32,165.31,53.28656065]
[1749611808001,10.29370379,165.32,165.31,53.28690565]
[1749611808503,10.29370379,165.32,165.31,28.18690565]
[1749611809306,10.29370379,165.32,165.31,28.18849676]
[1749611809512,10.29370379,165.32,165.31,26.0]
[1749611809812,10.29370379,165.32,165.31,28.1883767]
[1749611810307,16.45570379,165.36,165.31,28.1883767]
[1749611810503,10.29370379,165.32,165.31,26.0]
[1749611810814,10.29370379,165.32,165.31,28.18776365]
[1749611811209,10.29370379,165.32,165.31,26.0]
[1749611811523,10.29370379,165.32,165.31,2.18959411]
[1749611811729,10.29370379,165.32,165.31,2.18959599]
[1749611812232,10.29370379,165.32,165.31,2.1897857]
[1749611812423,10.29370379,165.32,165.25,25.06]
[1749611812627,10.29370379,165.26,165.25,25.06]
[1749611812830,10.29370379,165.26,165.25,27.2507265]
[1749611813035,10.29370379,165.26,165.25,2.19071233]
[1749611813206,10.29370379,165.26,165.25,25.06]
[1749611813409,10.29370379,165.26,165.25,2.19119339]
[1749611813626,10.29370379,165.26,165.25,2.19121526]
[1749611813831,10.29370379,165.26,165.25,28.19121526]
[1749611814506,10.29370379,165.26,165.25,28.19115766]
[1749611814704,10.29370379,165.26,165.25,28.19218482]
[1749611814938,10.29370379,165.26,165.25,26.0]
[1749611815154,10.29370379,165.26,165.25,2.19241749]
[1749611816450,11.89870379,165.26,165.25,2.20135649]
[1749611816623,11.89870379,165.26,165.2,51.06]
[1749611816824,10.29370379,165.21,165.2,25.06]
[1749611817021,10.29370379,165.21,165.2,27.26124282]
[1749611817264,10.29370379,165.21,165.2,53.26124282]
[1749611817437,10.29370379,165.21,165.2,28.2009811]
[1749611818236,10.29370379,165.21,165.2,2.2010999]
[1749611818537,10.29370379,165.21,165.2,2.2013538]
[1749611818711,1.605,165.26,165.2,2.20138699]
[1749611818907,1.605,165.26,165.2,2.20139062]
[1749611819209,10.29370379,165.21,165.19,8.33333333]
[1749611819428,10.29370379,165.2,165.19,8.33333333]
[1749611819623,10.29370379,165.2,165.19,10.53076259]
[1749611819950,1.605,165.26,165.19,10.53076259]
[1749611820153,10.29370379,165.2,165.19,8.33333333]
[1749611820444,10.29370379,165.2,165.19,10.53101784]
[1749611820615,10.29370379,165.2,165.19,10.53089089]
[1749611820816,1.605,165.26,165.19,36.53089089]
[1749611821060,1.605,165.26,165.21,26.0]
[1749611821226,10.29370379,165.22,165.21,51.08]
[1749611821425,10.29370379,165.22,165.21,53.29082167]
[1749611821626,10.29370379,165.22,165.21,53.2908784]
[1749611821933,10.29370379,165.22,165.21,53.29073859]
[1749611822130,10.29370379,165.22,165.21,2.21072818]
[1749611822349,1.605,165.26,165.21,2.21072818]
[1749611822538,10.29370379,165.22,165.19,59.41333333]
[1749611822843,1.605,165.26,165.2,2.21326137]
[1749611823043,10.29370379,165.21,165.19,59.41333333]
[1749611823238,10.29370379,165.2,165.19,8.33333333]
[1749611823547,10.29370379,165.2,165.19,10.5461787]
[1749611823746,10.29370379,165.2,165.19,10.5464949]
[1749611823945,10.29370379,165.2,165.19,10.54668112]
[1749611824246,20.58740758,165.2,165.19,10.54688465]
[1749611824454,20.58740758,165.2,165.19,8.33333333]
[1749611824630,22.09080758,165.2,165.19,8.33333333]
[1749611825149,22.09080758,165.2,165.08,89.9]
[1749611825150,22.09080758,165.2,165.12,25.08]
[1749611825330,10.29370379,165.13,165.06,12.76548001]
[1749611825652,6.2101,165.13,165.07,2.21435401]
[1749611825952,18.64964886,165.19,165.07,2.21435401]
[1749611825953,10.29370379,165.11,165.1,26.0]
[1749611826143,10.29370379,165.11,165.1,28.2150412]
[1749611826759,10.29370379,165.11,165.1,2.21408373]
[1749611827253,6.2101,165.18,165.1,26.0]
[1749611827555,17.200423,165.11,165.1,26.0]
[1749611827927,6.2101,165.18,165.1,28.21429612]
[1749611828128,17.200423,165.12,165.1,51.08]
[1749611828450,6.2101,165.18,165.1,51.08]
[1749611828656,17.200423,165.12,165.11,2.20851905]
[1749611828962,17.200423,165.12,165.1,51.08]
[1749611829256,17.200423,165.17,165.14,26.0]
[1749611829457,1.5034,165.2,165.14,51.08]
[1749611829663,17.200423,165.16,165.14,51.08]
[1749611830162,1.5034,165.2,165.14,51.08]
[1749611830557,17.200423,165.16,165.14,51.08]
[1749611830954,17.200423,165.17,165.14,51.08]
[1749611831157,17.200423,165.17,165.15,2.21694264]
[1749611831462,17.200423,165.17,165.16,2.21687597]
[1749611832459,17.200423,165.17,165.14,51.08]
[1749611832647,17.200423,165.17,165.15,2.21708163]
[1749611832849,17.200423,165.17,165.14,51.08]
[1749611833063,17.200423,165.17,165.15,2.21708194]
[1749611833366,17.200423,165.17,165.14,51.08]
[1749611833541,17.200423,165.17,165.15,2.21564472]
[1749611833839,17.200423,165.17,165.14,51.08]
[1749611834153,1.5034,165.2,165.15,2.21604666]
[1749611834363,17.200423,165.17,165.14,51.08]
[1749611834562,17.200423,165.17,165.15,2.21604641]
[1749611834776,17.200423,165.17,165.14,51.08]
[1749611834945,17.200423,165.17,165.15,2.2162617]
[1749611835141,17.200423,165.17,165.14,51.08]
[1749611835468,17.200423,165.17,165.15,2.21568339]
[1749611835645,17.200423,165.16,165.14,51.08]
[1749611835846,17.200423,165.16,165.15,2.21462156]
[1749611836749,17.200423,165.16,165.14,51.08]
[1749611837446,17.200423,165.16,165.15,2.21609577]
[1749611837646,17.200423,165.16,165.15,2.21533925]
[1749611838263,17.200423,165.16,165.15,2.21566508]
[1749611838562,17.200423,165.16,165.14,140.98]
[1749611838767,17.200423,165.16,165.15,2.21567779]
[1749611839964,18.703823,165.2,165.14,140.98]
[1749611840146,17.200423,165.16,165.14,140.98]
[1749611840344,17.200423,165.16,165.15,2.21580417]
[1749611840582,17.200423,165.16,165.15,2.21571227]
[1749611841079,17.200423,165.16,165.15,2.21754774]
[1749611841579,1.5034,165.2,165.15,2.21754774]
[1749611841744,17.200423,165.19,165.16,25.08]
[1749611842374,22.720423,165.21,165.16,25.08]
[1749611842551,17.200423,165.2,165.17,2.21775122]
[1749611842756,17.200423,165.19,165.18,26.0]
[1749611843769,17.200423,165.19,165.18,51.08]
[1749611843984,1.5536,165.27,165.22,26.0]
[1749611844279,1.5536,165.27,165.22,51.08]
[1749611844954,17.200423,165.23,165.22,51.08]
[1749611845159,17.200423,165.23,165.22,53.29840384]
[1749611845355,17.200423,165.23,165.22,51.08]
[1749611846676,17.200423,165.23,165.22,53.29848434]